bitfinex/quotes_SOLUSD_20240818
["timestamp","ask_amount","ask_price","bid_price","bid_amount"]
[1723985825116,7.79467258,145.59,145.55,0.3552172]
[1723985825302,45.0,145.58,145.55,0.3552172]
[1723985825491,1.71767538,145.57,145.55,0.3552172]
[1723985825689,9.51437389,145.57,145.55,0.3552172]
[1723985825878,45.0,145.56,145.55,0.3552172]
[1723985826084,73.56253895,145.56,145.55,0.3552172]
[1723985826391,86.04803734,145.56,145.55,0.3552172]
[1723985828502,7.79704895,145.56,145.55,0.3552172]
[1723985829121,7.79684766,145.56,145.55,0.3552172]
[1723985829296,20.64,145.6,145.55,0.3552172]
[1723985829502,7.79486471,145.59,145.55,0.3552172]
[1723985829704,12.10607404,145.6,145.55,0.3552172]
[1723985829909,7.79491011,145.59,145.55,0.3552172]
[1723985830207,7.79491011,145.58,145.55,0.3552172]
[1723985830423,12.10685266,145.6,145.55,0.3552172]
[1723985830611,7.79527772,145.59,145.55,0.3552172]
[1723985830817,7.79527772,145.58,145.55,0.3552172]
[1723985831020,1.84311178,145.59,145.55,0.3552172]
[1723985831218,7.92076023,145.58,145.55,0.3552172]
[1723985831532,52.79527023,145.57,145.55,0.3552172]
[1723985831729,45.0,145.57,145.55,0.3552172]
[1723985832215,45.0,145.58,145.55,0.3552172]
[1723985832425,7.79595599,145.57,145.55,0.3552172]
[1723985832610,45.0,145.56,145.55,0.3552172]
[1723985836133,12.10773329,145.58,145.55,0.3552172]
[1723985836317,12.10773329,145.61,145.55,0.3552172]
[1723985836517,19.90309114,145.6,145.55,0.3552172]
[1723985836703,7.79535785,145.59,145.55,0.3552172]
[1723985836908,32.74773329,145.62,145.55,0.3552172]
[1723985837125,19.90246978,145.61,145.55,0.3552172]
[1723985837307,7.79473649,145.6,145.55,0.3552172]
[1723985837633,32.74773329,145.62,145.55,0.3552172]
[1723985837927,7.79464974,145.61,145.55,0.3552172]
[1723985838127,7.79464974,145.6,145.55,0.3552172]
[1723985838346,45.0,145.59,145.55,0.3552172]
[1723985839132,12.10578212,145.63,145.56,21.5637]
[1723985839343,7.79426485,145.62,145.56,21.5637]
[1723985839515,7.79426485,145.61,145.56,21.5637]
[1723985839715,12.10578212,145.63,145.56,21.5637]
[1723985840013,7.79421902,145.62,145.57,1.37371782]
[1723985840215,7.79421902,145.61,145.56,21.5637]
[1723985840430,12.10578212,145.64,145.57,1.3730574]
[1723985840738,52.91967273,145.63,145.57,1.3730574]
[1723985840917,7.79418273,145.62,145.56,21.5637]
[1723985841117,45.0,145.61,145.57,1.37239714]
[1723985841307,45.0,145.63,145.57,1.37239714]
[1723985841512,45.0,145.64,145.56,21.5637]
[1723985841714,7.79361963,145.63,145.56,21.5637]
[1723985841914,45.0,145.62,145.56,21.5637]
[1723985843236,45.0,145.62,145.57,1.37378977]
[1723985843416,45.0,145.62,145.56,21.5637]
[1723985845117,7.13119212,145.66,145.56,21.5637]
[1723985845441,23.04192488,145.68,145.57,16.65116563]
[1723985845637,7.79249406,145.67,145.58,1.37346051]
[1723985846017,28.43249406,145.67,145.57,15.2777]
[1723985846217,7.79249406,145.66,145.57,15.2777]
[1723985846423,0.25098,145.65,145.57,15.2777]
[1723985846715,45.25098,145.65,145.57,15.2777]
[1723985846915,0.25098,145.65,145.57,15.2777]
[1723985849742,45.25098,145.66,145.57,15.2777]
[1723985849926,0.12549,145.65,145.57,15.2777]
[1723985850130,0.50196,145.65,145.57,15.2777]
[1723985853554,0.25098,145.65,145.57,15.2777]
[1723985853720,0.12549,145.65,145.57,15.2777]
[1723985855422,0.12549,145.65,145.58,1.37353583]
[1723985855631,45.0,145.66,145.58,1.37353583]
[1723985855830,66.01647,145.67,145.58,1.37353583]
[1723985856028,66.01647,145.67,145.59,16.0268]
[1723985856029,45.0,145.67,145.59,16.0268]
[1723985856237,6.8629,145.71,145.6,6.2228]
[1723985856422,20.64,145.69,145.6,6.2228]
[1723985856741,20.64,145.7,145.6,6.2228]
[1723985856928,7.79166036,145.69,145.61,16.0268]
[1723985857128,7.13145108,145.71,145.61,16.0268]
[1723985857518,27.77145108,145.71,145.61,16.0268]
[1723985858351,20.64,145.72,145.62,6.2228]
[1723985858651,20.64,145.74,145.63,16.0268]
[1723985858949,7.79001729,145.73,145.63,16.0268]
[1723985859153,7.12969195,145.75,145.65,16.0268]
[1723985859363,6.8602,145.77,145.65,16.0268]
[1723985859527,7.78880284,145.76,145.65,16.0268]
[1723985859723,28.42880284,145.76,145.65,16.0268]
[1723985859951,20.64,145.76,145.65,16.0268]
[1723985861153,20.64,145.76,145.66,1.37274208]
[1723985861452,27.77034954,145.78,145.68,6.2228]
[1723985861661,27.77034954,145.78,145.69,16.0268]
[1723985861827,20.64,145.81,145.69,16.0268]
[1723985862027,20.64,145.79,145.69,16.0268]
[1723985862841,20.64,145.79,145.7,6.2228]
[1723985863343,34.62981493,145.81,145.7,6.2228]
[1723985863549,0.12549,145.8,145.7,6.2228]
[1723985863950,45.50196,145.8,145.7,6.2228]
[1723985868357,45.50196,145.8,145.71,16.0268]
[1723985869047,6.8598,145.78,145.71,16.0268]
[1723985869242,45.12549,145.77,145.71,16.0268]
[1723985873651,0.12549,145.77,145.71,16.0268]
[1723985873848,45.0,145.76,145.71,16.0268]
[1723985874055,0.12549,145.77,145.71,16.0268]
[1723985875768,0.12549,145.75,145.71,16.0268]
[1723985876066,1.9668016,145.75,145.71,16.0268]
[1723985876365,0.12549,145.74,145.71,16.0268]
[1723985877941,45.0,145.75,145.71,16.0268]
[1723985878246,45.0,145.76,145.71,16.0268]
[1723985878548,0.12549,145.76,145.71,16.0268]
[1723985878743,45.25098,145.77,145.71,16.0268]
[1723985878951,0.25098,145.77,145.71,16.0268]
[1723985879754,6.8583,145.81,145.72,1.37239517]
[1723985879944,20.64,145.8,145.72,1.37239517]
[1723985880468,16.43641186,145.82,145.72,1.37239517]
[1723985880675,16.43641186,145.82,145.71,16.0268]
[1723985881044,20.64,145.81,145.71,16.0268]
[1723985881376,20.64,145.81,145.72,6.5825]
[1723985881554,20.64,145.81,145.73,16.4312]
[1723985881950,0.12549,145.8,145.74,6.5825]
[1723985882173,20.64,145.83,145.75,16.4312]
[1723985883349,0.12549,145.82,145.75,16.4312]
[1723985883551,29.85199497,145.85,145.76,1.37093558]
[1723985883745,27.4963,145.85,145.76,1.37093558]
[1723985884375,7.1308169,145.86,145.77,23.0137]
[1723985884562,20.64,145.89,145.77,23.0137]
[1723985884749,27.4945,145.89,145.79,16.4312]
[1723985885078,20.64,145.89,145.79,16.4312]
[1723985885944,27.4946,145.89,145.79,16.4312]
[1723985886572,0.12549,145.88,145.79,16.4312]
[1723985886775,1.84001918,145.88,145.79,16.4312]
[1723985887065,0.12549,145.86,145.79,16.4312]
[1723985887271,67.73115609,145.86,145.79,16.4312]
[1723985887480,0.12549,145.85,145.79,16.4312]
[1723985887671,0.12549,145.84,145.79,16.4312]
[1723985887848,0.25098,145.84,145.79,16.4312]
[1723985888249,0.12549,145.82,145.79,16.4312]
[1723985888460,67.60594234,145.82,145.79,16.4312]
[1723985888662,0.25098,145.81,145.79,16.4312]
[1723985889753,45.12549,145.82,145.79,16.4312]
[1723985889951,20.62,145.85,145.79,16.4312]
[1723985890150,0.12549,145.86,145.79,16.4312]
[1723985890369,6.8554,145.87,145.79,16.4312]
[1723985890749,20.62,145.86,145.79,16.4312]
[1723985891552,0.12549,145.85,145.79,16.4312]
[1723985891750,45.50196,145.85,145.79,16.4312]
[1723985892752,0.12549,145.83,145.79,16.4312]
[1723985893050,45.50196,145.83,145.79,16.4312]
[1723985893465,20.62,145.82,145.79,16.4312]
[1723985893773,45.0,145.81,145.79,16.4312]
[1723985894878,1.71487949,145.8,145.79,16.4312]
[1723985895088,22.71134949,145.8,145.77,6.5825]
[1723985895373,45.0,145.79,145.77,6.5825]
[1723985895550,1.71514572,145.78,145.77,6.5825]
[1723985895966,45.0,145.79,145.77,6.5825]
[1723985897673,20.62,145.85,145.77,6.5825]
[1723985898181,20.62,145.86,145.77,6.5825]
[1723985898777,2.83282639,145.88,145.78,15.2015]
[1723985898778,20.62,145.88,145.78,15.2015]
[1723985899259,7.78303621,145.87,145.78,15.2015]
[1723985899468,28.40303621,145.87,145.78,15.2015]
[1723985899684,20.62,145.87,145.78,15.2015]
[1723985900574,20.62,145.88,145.78,15.2015]
[1723985900772,28.40287795,145.87,145.78,15.2015]
[1723985900980,20.62,145.85,145.78,15.2015]
[1723985901562,0.12549,145.84,145.78,15.2015]
[1723985901775,45.12549,145.84,145.78,15.2015]
[1723985901968,45.0,145.84,145.78,15.2015]
[1723985902154,65.62,145.85,145.78,15.2015]
[1723985903182,6.855,145.88,145.78,15.2015]
[1723985903183,20.62,145.88,145.78,15.2015]
[1723985903359,7.78361187,145.87,145.78,15.2015]
[1723985903566,7.78361187,145.86,145.78,15.2015]
[1723985903776,7.78361187,145.85,145.78,15.2015]
[1723985903962,20.62,145.86,145.78,15.2015]
[1723985904166,7.783602,145.85,145.78,15.2015]
[1723985904593,45.0,145.84,145.78,15.2015]
[1723985905065,65.62,145.85,145.78,15.2015]
[1723985905261,7.78361187,145.84,145.78,15.2015]
[1723985905484,45.0,145.83,145.78,15.2015]
[1723985905875,45.0,145.84,145.78,15.2015]
[1723985906280,65.62,145.85,145.78,15.2015]
[1723985906478,7.78346622,145.84,145.78,15.2015]
[1723985906680,45.0,145.83,145.78,15.2015]
[1723985906887,65.62,145.83,145.78,15.2015]
[1723985907579,67.33488529,145.83,145.78,15.2015]
[1723985907779,7.78403068,145.82,145.78,15.2015]
[1723985907987,45.0,145.81,145.78,15.2015]
[1723985913181,0.12549,145.84,145.78,15.2015]
[1723985913381,7.78405003,145.83,145.78,15.2015]
[1723985913600,0.12549,145.85,145.78,15.2015]
[1723985913791,7.78333858,145.84,145.78,15.2015]
[1723985914797,45.0,145.83,145.78,15.2015]
[1723985916201,45.0,145.84,145.78,15.2015]
[1723985916402,7.78365775,145.83,145.78,15.2015]
[1723985916592,45.0,145.82,145.78,15.2015]
[1723985916790,45.0,145.85,145.78,15.2015]
[1723985917190,7.78356703,145.84,145.78,15.2015]
[1723985917388,73.40356703,145.83,145.78,15.2015]
[1723985917589,20.62,145.83,145.78,15.2015]
[1723985917795,73.40410445,145.82,145.78,15.2015]
[1723985918091,65.62,145.82,145.78,15.2015]
[1723985918289,45.0,145.82,145.78,15.2015]
[1723985919090,45.0,145.83,145.78,15.2015]
[1723985919286,7.78411388,145.82,145.78,15.2015]
[1723985919488,45.0,145.81,145.78,15.2015]
[1723985919699,45.12549,145.84,145.78,15.2015]
[1723985919898,7.78411048,145.83,145.78,15.2015]
[1723985920105,12.08846716,145.86,145.78,15.2015]
[1723985920308,28.4033496,145.85,145.78,15.2015]
[1723985920602,7.7833496,145.84,145.78,15.2015]
[1723985920805,32.70846716,145.86,145.78,15.2015]
[1723985920806,7.7833496,145.83,145.78,15.2015]
[1723985920992,32.70811719,145.86,145.78,15.2015]
[1723985921194,73.52878916,145.85,145.78,15.2015]
[1723985921507,7.78329916,145.84,145.78,15.2015]
[1723985921681,52.78329916,145.83,145.78,15.2015]
[1723985922006,45.0,145.83,145.78,15.2015]
[1723985922199,45.0,145.84,145.78,15.2015]
[1723985922408,7.78329916,145.83,145.78,15.2015]
[1723985922708,0.25098,145.87,145.78,15.2015]
[1723985922709,45.0,145.82,145.78,15.2015]
[1723985923495,45.0,145.83,145.78,15.2015]
[1723985923704,45.0,145.84,145.78,15.2015]
[1723985924411,7.78267216,145.83,145.78,15.2015]
[1723985924708,45.0,145.82,145.78,15.2015]
[1723985925581,45.0,145.83,145.78,15.2015]
[1723985925783,7.78296117,145.82,145.78,15.2015]
[1723985926006,45.0,145.81,145.78,15.2015]
[1723985926192,45.0,145.84,145.78,15.2015]
[1723985926393,7.78296747,145.83,145.78,15.2015]
[1723985926593,52.78296747,145.82,145.78,15.2015]
[1723985926811,45.0,145.81,145.78,15.2015]
[1723985927013,45.0,145.84,145.78,15.2015]
[1723985927308,7.78292229,145.83,145.78,15.2015]
[1723985927501,52.78292229,145.82,145.78,15.2015]
[1723985927680,45.0,145.81,145.78,15.2015]
[1723985928192,45.0,145.82,145.78,15.2015]
[1723985928589,57.08751209,145.83,145.78,15.2015]
[1723985928884,7.78291892,145.82,145.78,15.2015]
[1723985929183,45.0,145.81,145.78,15.2015]
[1723985929596,45.0,145.82,145.78,15.2015]
[1723985930608,57.08738054,145.83,145.78,15.2015]
[1723985930805,7.78320493,145.82,145.78,15.2015]
[1723985930995,45.0,145.81,145.78,15.2015]
[1723985931194,45.0,145.83,145.78,15.2015]
[1723985931385,7.78323222,145.82,145.78,15.2015]
[1723985931582,45.0,145.83,145.79,1.37098753]
[1723985931787,57.08688568,145.84,145.78,15.2015]
[1723985932006,7.78268676,145.83,145.78,15.2015]
[1723985932283,45.0,145.82,145.78,15.2015]
[1723985933206,45.0,145.83,145.78,15.2015]
[1723985933406,57.08709663,145.84,145.78,15.2015]
[1723985933616,9.49715897,145.83,145.78,15.2015]
[1723985933799,52.78260238,145.82,145.78,15.2015]
[1723985933990,45.0,145.82,145.78,15.2015]
[1723985934612,28.40332249,145.81,145.78,15.2015]
[1723985934905,52.78332249,145.8,145.78,15.2015]
[1723985935106,7.78448549,145.79,145.78,15.2015]
[1723985935410,52.78448549,145.79,145.78,15.2015]
[1723985937608,45.0,145.79,145.78,15.2015]
[1723985937815,52.78466467,145.79,145.78,15.2015]
[1723985938313,52.78466375,145.79,145.78,15.2015]
[1723985938617,52.78466421,145.79,145.78,15.2015]
[1723985945814,7.78466421,145.79,145.78,15.2015]
[1723985946009,12.08826789,145.84,145.78,15.2015]
[1723985946220,19.87179059,145.83,145.78,15.2015]
[1723985946419,19.87179059,145.82,145.78,15.2015]
[1723985946726,7.7835227,145.81,145.78,15.2015]
[1723985946922,7.7835227,145.8,145.78,15.2015]
[1723985947131,32.70862346,145.84,145.78,15.2015]
[1723985947322,65.24883657,145.83,145.78,15.2015]
[1723985947518,19.87236657,145.82,145.78,15.2015]
[1723985947828,52.78374311,145.81,145.78,15.2015]
[1723985948122,7.78373973,145.8,145.78,15.2015]
[1723985948319,45.0,145.81,145.78,15.2015]
[1723985948517,7.78374065,145.8,145.78,15.2015]
[1723985948705,45.0,145.79,145.78,15.2015]
[1723985950122,52.78419413,145.79,145.78,15.2015]
[1723985950533,52.78419413,145.79,145.74,15.4191]
[1723985950827,45.0,145.79,145.74,15.4191]
[1723985951024,7.78445645,145.78,145.74,15.4191]
[1723985951225,7.78445645,145.78,145.7,15.4191]
[1723985951226,73.65572569,145.77,145.7,15.4191]
[1723985951430,7.78474569,145.76,145.7,15.4191]
[1723985951722,52.78474569,145.75,145.7,15.4191]
[1723985951922,45.0,145.75,145.7,15.4191]
[1723985953726,45.0,145.76,145.7,15.4191]
[1723985953918,7.78677996,145.75,145.7,15.4191]
[1723985954118,45.0,145.74,145.7,15.4191]
[1723985954303,45.0,145.76,145.7,15.4191]
[1723985954705,65.87098,145.77,145.7,15.4191]
[1723985954924,7.78681888,145.76,145.7,15.4191]
[1723985955225,20.62,145.79,145.7,15.4191]
[1723985955430,7.78594757,145.78,145.7,15.4191]
[1723985955604,7.78594757,145.77,145.7,15.4191]
[1723985955809,20.62,145.79,145.7,15.4191]
[1723985956018,7.78598366,145.78,145.7,15.4191]
[1723985956336,20.62,145.79,145.7,15.4191]
[1723985956505,52.78589958,145.78,145.7,15.4191]
[1723985956704,45.0,145.78,145.7,15.4191]
[1723985957809,65.62,145.78,145.7,15.4191]
[1723985958011,7.78622456,145.77,145.7,15.4191]
[1723985958212,45.0,145.76,145.7,15.4191]
[1723985958605,65.62,145.77,145.7,15.4191]
[1723985960524,45.0,145.77,145.7,15.4191]
[1723985960721,65.74549,145.78,145.7,15.4191]
[1723985960921,7.78646887,145.77,145.7,15.4191]
[1723985961117,45.0,145.76,145.7,15.4191]
[1723985961315,65.74549,145.78,145.7,15.4191]
[1723985963222,0.12549,145.77,145.7,15.4191]
[1723985963533,28.53177946,145.77,145.7,15.4191]
[1723985963735,52.78628946,145.76,145.7,15.4191]
[1723985963934,45.0,145.76,145.7,15.4191]
[1723985969550,22.33558071,145.76,145.7,15.4191]
[1723985969732,65.62,145.75,145.7,15.4191]
[1723985969928,1.71577148,145.74,145.7,15.4191]
[1723985970133,1.71576891,145.73,145.7,15.4191]
[1723985971234,1.71576107,145.74,145.7,15.4191]
[1723985971542,1.71576256,145.73,145.7,15.4191]
[1723985972333,1.71578228,145.74,145.7,15.4191]
[1723985972636,1.71578236,145.73,145.7,15.4191]
[1723985973441,1.71581739,145.74,145.7,15.4191]
[1723985973635,1.71582836,145.73,145.7,15.4191]
[1723985974530,1.71581568,145.74,145.7,15.4191]
[1723985974730,65.62,145.75,145.7,15.4191]
[1723985974731,1.71581376,145.73,145.7,15.4191]
[1723985975755,1.71579962,145.74,145.7,15.4191]
[1723985975966,1.7157977,145.73,145.7,15.4191]
[1723985976251,65.62,145.75,145.7,15.4191]
[1723985976751,45.0,145.75,145.7,15.4191]
[1723985976969,45.12549,145.76,145.7,15.4191]
[1723985977446,65.74549,145.76,145.7,15.4191]
[1723985981352,65.62,145.76,145.7,15.4191]
[1723985982253,20.62,145.79,145.71,1.3370109]
[1723985982458,7.78637221,145.78,145.71,1.3370109]
[1723985982753,7.78637221,145.77,145.7,15.4191]
[1723985982968,20.62,145.79,145.7,15.4191]
[1723985983259,7.78636975,145.78,145.7,15.4191]
[1723985983555,45.0,145.77,145.7,15.4191]
[1723985983948,45.0,145.78,145.7,15.4191]
[1723985984148,9.50157245,145.77,145.7,15.4191]
[1723985984383,45.0,145.76,145.7,15.4191]
[1723985984548,1.71535027,145.77,145.7,15.4191]
[1723985984752,45.0,145.78,145.7,15.4191]
[1723985984941,7.786261,145.77,145.7,15.4191]
[1723985985141,45.0,145.76,145.7,15.4191]
[1723985988942,1.71550043,145.75,145.7,15.4191]
[1723985992356,7.78733327,145.74,145.7,15.4191]
[1723985992556,45.0,145.73,145.7,15.4191]
[1723985992773,1.71550043,145.75,145.7,15.4191]
[1723985992957,7.78733373,145.74,145.7,15.4191]
[1723985993158,45.0,145.73,145.7,15.4191]
[1723985993569,45.0,145.74,145.7,15.4191]
[1723985993753,40.96847591,145.9,145.7,15.4191]
[1723985993754,12.0943356,145.81,145.71,0.12549]
[1723985993957,12.0943356,145.84,145.73,15.239]
[1723985994147,19.87823387,145.83,145.74,1.37203828]
[1723985994347,13.8839,145.87,145.75,21.6316]
[1723985994348,12.0943356,145.86,145.75,21.6316]
[1723985994645,20.62,145.84,145.76,1.37150909]
[1723985994850,28.40318714,145.83,145.75,21.6316]
[1723985995053,7.78315658,145.82,145.76,1.37136465]
[1723985995260,20.62,145.83,145.75,21.6316]
[1723985995772,7.78311512,145.82,145.75,21.6316]
[1723985995948,20.62,145.83,145.75,21.6316]
[1723985996148,7.78311512,145.82,145.75,21.6316]
[1723985996354,20.62,145.83,145.75,21.6316]
[1723985996562,1.71489543,145.82,145.75,21.6316]
[1723985996763,20.62,145.83,145.75,21.6316]
[1723985996764,20.74549,145.83,145.75,21.6316]
[1723985996963,65.74549,145.82,145.75,21.6316]
[1723985997956,0.12549,145.81,145.75,21.6316]
[1723985998157,0.37647,145.81,145.75,21.6316]
[1723985998365,0.12549,145.8,145.75,21.6316]
[1723986000767,65.62,145.82,145.75,21.6316]
[1723986000968,7.78440115,145.81,145.75,21.6316]
[1723986001167,20.62,145.82,145.75,21.6316]
[1723986002186,20.62,145.84,145.75,21.6316]
[1723986002983,20.62,145.84,145.77,15.239]
[1723986003284,20.62,145.85,145.77,15.239]
[1723986003459,7.78305523,145.84,145.77,15.239]
[1723986004155,7.78305523,145.84,145.78,6.3926]
[1723986004352,7.17602648,145.86,145.78,6.3926]
[1723986004577,18.94410678,145.9,145.78,6.3926]
[1723986004775,20.62,145.88,145.78,6.3926]
[1723986004973,20.62,145.86,145.78,6.3926]
[1723986005185,20.62,145.86,145.79,15.239]
[1723986005980,65.62,145.85,145.79,15.239]
[1723986006394,45.0,145.85,145.79,15.239]
[1723986006583,45.0,145.86,145.79,15.239]
[1723986008065,7.3535,145.91,145.82,15.239]
[1723986008066,21.12,145.91,145.82,15.239]
[1723986008281,21.12,145.91,145.83,1.3712733]
[1723986008480,20.62,145.9,145.82,15.239]
[1723986008672,9.49575267,145.89,145.82,15.239]
[1723986008993,20.62,145.9,145.82,15.239]
[1723986009593,1.71409433,145.9,145.82,15.239]
[1723986009901,22.58530914,145.89,145.82,15.239]
[1723986010091,22.58528378,145.89,145.82,15.239]
[1723986010289,0.12549,145.86,145.82,15.239]
[1723986010596,22.83645138,145.86,145.82,15.239]
[1723986010793,45.0,145.85,145.82,15.239]
[1723986015377,65.62,145.85,145.82,15.239]
[1723986015587,0.12549,145.84,145.82,15.239]
[1723986016385,65.62,145.85,145.82,15.239]
[1723986016584,45.0,145.85,145.82,15.239]
[1723986016878,0.12549,145.84,145.82,15.239]
[1723986017600,0.12549,145.83,145.78,16.4152]
[1723986017791,0.37647,145.83,145.78,16.4152]
[1723986019006,0.5,145.91,145.82,16.4152]
[1723986020187,0.12549,145.89,145.82,16.4152]
[1723986020606,0.25098,145.89,145.82,16.4152]
[1723986020803,7.10548,145.89,145.82,16.4152]
[1723986021005,0.12549,145.87,145.7,7.16880808]
[1723986021193,1.96573931,145.87,145.73,22.9601]
[1723986021396,0.12549,145.86,145.73,22.9601]
[1723986021583,0.12549,145.85,145.73,22.9601]
[1723986021787,20.62,145.84,145.73,22.9601]
[1723986022007,65.99647,145.83,145.73,22.9601]
[1723986022313,45.0,145.82,145.73,22.9601]
[1723986022607,65.62,145.82,145.73,22.9601]
[1723986022794,45.0,145.82,145.74,1.37157026]
[1723986023117,45.0,145.82,145.73,22.9601]
[1723986023695,65.62,145.82,145.74,20.0]
[1723986024088,65.62,145.82,145.75,1.37148654]
[1723986024491,65.62,145.82,145.74,20.0]
[1723986024697,65.62,145.82,145.75,1.37115531]
[1723986024895,65.62,145.82,145.74,20.0]
[1723986025078,65.62,145.82,145.75,1.3715225]
[1723986025495,65.62,145.82,145.74,20.0]
[1723986026019,65.62,145.82,145.75,1.37157092]
[1723986027394,6.8556,145.87,145.76,16.4152]
[1723986027599,7.78342066,145.86,145.77,6.5449]
[1723986027803,6.8548,145.89,145.77,6.5449]
[1723986028003,7.7825531,145.88,145.78,1.37107949]
[1723986028288,20.62,145.87,145.78,1.37107949]
[1723986028507,20.62,145.88,145.79,16.4152]
[1723986028709,20.62,145.86,145.79,16.4152]
[1723986029595,65.62,145.85,145.79,16.4152]
[1723986030114,0.12549,145.84,145.79,16.4152]
[1723986031806,0.25098,145.84,145.79,16.4152]
[1723986032118,0.25098,145.83,145.79,16.4152]
[1723986032320,0.25098,145.82,145.79,16.4152]
[1723986032530,0.25098,145.82,145.77,6.5449]
[1723986032531,0.25098,145.81,145.77,6.5449]
[1723986032689,0.12549,145.8,145.77,6.5449]
[1723986033812,65.62,145.81,145.77,6.5449]
[1723986034993,20.62,145.84,145.77,6.5449]
[1723986035418,20.62,145.79,145.75,16.4152]
[1723986035796,22.33533245,145.79,145.75,16.4152]
[1723986036110,1.71531829,145.78,145.75,16.4152]
[1723986036307,20.62,145.79,145.75,16.4152]
[1723986036501,0.12549,145.83,145.75,16.4152]
[1723986036706,7.90993679,145.82,145.75,16.4152]
[1723986036914,0.12549,145.83,145.75,16.4152]
[1723986037106,7.7841846,145.82,145.75,16.4152]
[1723986037520,28.4041846,145.82,145.75,16.4152]
[1723986037703,7.7841846,145.81,145.75,16.4152]
[1723986038602,45.0,145.8,145.75,16.4152]
[1723986038805,45.0,145.81,145.75,16.4152]
[1723986039001,65.62,145.81,145.75,16.4152]
[1723986039215,20.62,145.79,145.75,16.4152]
[1723986039429,45.0,145.78,145.75,16.4152]
[1723986039795,67.33527573,145.78,145.75,16.4152]
[1723986040008,0.12549,145.77,145.75,16.4152]
[1723986040208,20.62,145.76,145.73,6.2127]
[1723986040421,45.0,145.75,145.73,6.2127]
[1723986040624,0.12549,145.77,145.73,6.2127]
[1723986040924,45.12549,145.78,145.73,6.2127]
[1723986041225,45.0,145.77,145.73,6.2127]
[1723986041426,20.74549,145.78,145.73,6.2127]
[1723986041621,45.0,145.77,145.73,6.2127]
[1723986042305,65.62,145.77,145.73,6.2127]
[1723986043116,45.0,145.77,145.73,6.2127]
[1723986043305,65.62,145.77,145.73,6.2127]
[1723986043822,45.0,145.77,145.73,6.2127]
[1723986044824,20.62,145.8,145.73,6.2127]
[1723986045031,12.09176177,145.84,145.73,6.2127]
[1723986045199,7.78488152,145.83,145.73,6.2127]
[1723986045521,20.62,145.82,145.73,6.2127]
[1723986045729,30.11947314,145.81,145.73,6.2127]
[1723986045920,22.33500826,145.81,145.73,6.2127]
[1723986046621,45.0,145.8,145.73,6.2127]
[1723986047215,67.33513046,145.8,145.73,6.2127]
[1723986047932,65.62,145.8,145.73,6.2127]
[1723986049136,0.12549,145.79,145.73,6.2127]
[1723986049318,65.62,145.8,145.73,6.2127]
[1723986050817,20.62,145.78,145.73,6.2127]
[1723986051011,8.28737557,145.79,145.73,6.2127]
[1723986051012,67.33550624,145.77,145.73,6.2127]
[1723986051214,46.71550054,145.76,145.73,6.2127]
[1723986051828,45.0,145.76,145.73,6.2127]
[1723986052139,1.71557408,145.75,145.73,6.2127]
[1723986052438,65.62,145.76,145.73,6.2127]
[1723986053323,1.715605,145.75,145.73,6.2127]
[1723986055540,1.71560925,145.75,145.73,6.2127]
[1723986056448,0.12549,145.75,145.72,16.554]
[1723986056618,0.50196,145.75,145.72,16.554]
[1723986057034,0.50196,145.75,145.69,6.2253]
[1723986057245,1.71600871,145.74,145.69,6.2253]
[1723986057461,0.50196,145.75,145.69,6.2253]
[1723986057462,1.84149596,145.73,145.69,6.2253]
[1723986057611,1.71600596,145.73,145.69,6.2253]
[1723986058327,0.37647,145.72,145.69,6.2253]
[1723986058637,0.12549,145.71,145.68,16.2759]